[Event "British Rapidplay Championship 2023"]
[Site "Mercure Bradford, Bankfield Hotel"]
[Date "2023.04.16"]
[Round "11.23"]
[White "Ortiz Sanchez, Luis"]
[Black "Bastow, Mark A"]
[Result "1/2-1/2"]
[TimeControl "15 minutes plus 10 seconds per move"]
[WhiteElo "1888"]
[BlackElo "1739"]

1. d4 {[%clk 00:15:17]} {[%emt 00:00:03]} d5 {[%clk 00:15:14]} {[%emt
00:00:06]} 2. Nf3 {[%clk 00:15:25]} {[%emt 00:00:02]} e6 {[%clk 00:15:08]}
{[%emt 00:00:16]} 3. Bf4 {[%clk 00:15:30]} {[%emt 00:00:05]} c5 {[%clk
00:15:03]} {[%emt 00:00:15]} 4. e3 {[%clk 00:15:26]} {[%emt 00:00:14]} Nc6
{[%clk 00:15:01]} {[%emt 00:00:12]} 5. c3 {[%clk 00:15:16]} {[%emt 00:00:20]}
Nf6 {[%clk 00:14:44]} {[%emt 00:00:26]} 6. h3 {[%clk 00:15:23]} {[%emt
00:00:03]} Be7 {[%clk 00:14:39]} {[%emt 00:00:15]} 7. Nbd2 {[%clk 00:15:30]}
{[%emt 00:00:03]} O-O {[%clk 00:14:45]} {[%emt 00:00:04]} 8. Bd3 {[%clk
00:15:38]} {[%emt 00:00:03]} b6 {[%clk 00:14:44]} {[%emt 00:00:10]} 9. Qe2
{[%clk 00:15:42]} {[%emt 00:00:06]} Bb7 {[%clk 00:14:45]} {[%emt 00:00:09]} 10.
O-O {[%clk 00:15:44]} {[%emt 00:00:08]} a6 {[%clk 00:12:05]} {[%emt 00:02:50]}
11. a4 {[%clk 00:15:45]} {[%emt 00:00:09]} c4 {[%clk 00:11:29]} {[%emt
00:00:45]} 12. Bc2 {[%clk 00:15:52]} {[%emt 00:00:04]} b5 {[%clk 00:11:38]}
{[%emt 00:00:01]} 13. axb5 {[%clk 00:15:28]} {[%emt 00:00:35]} axb5 {[%clk
00:11:45]} {[%emt 00:00:02]} 14. e4 {[%clk 00:15:37]} dxe4 {[%clk 00:11:35]}
{[%emt 00:00:20]} 15. Nxe4 {[%clk 00:15:41]} {[%emt 00:00:07]} Nd5 {[%clk
00:11:09]} {[%emt 00:00:35]} 16. Bg5 {[%emt 00:00:38]} h6 {[%clk 00:10:56]} 17.
Bxe7 {[%clk 00:15:42]} {[%emt 00:00:04]} Qxe7 {[%clk 00:10:53]} {[%emt
00:00:13]} 18. Nc5 {[%clk 00:15:51]} {[%emt 00:00:02]} Rxa1 {[%clk 00:10:53]}
{[%emt 00:00:10]} 19. Rxa1 {[%clk 00:16:00]} {[%emt 00:00:01]} Ra8 {[%clk
00:11:01]} {[%emt 00:00:01]} 20. Re1 {[%clk 00:15:56]} {[%emt 00:00:14]} Nf6
{[%clk 00:10:32]} {[%emt 00:00:38]} 21. Nxb7 {[%clk 00:15:39]} {[%emt
00:00:28]} Qxb7 {[%clk 00:10:40]} {[%emt 00:00:02]} 22. Bb1 {[%clk 00:15:47]}
{[%emt 00:00:03]} Qd7 {[%clk 00:10:08]} {[%emt 00:00:42]} 23. Ne5 {[%clk
00:15:46]} {[%emt 00:00:11]} Nxe5 {[%clk 00:10:11]} {[%emt 00:00:06]} 24. Qxe5
{[%clk 00:15:54]} {[%emt 00:00:03]} Qd5 {[%clk 00:09:57]} {[%emt 00:00:23]} 25.
Qc7 {[%clk 00:15:57]} {[%emt 00:00:07]} Qd8 {[%clk 00:09:36]} {[%emt 00:00:31]}
26. Qc6 {[%clk 00:16:02]} {[%emt 00:00:06]} Qd5 {[%clk 00:09:45]} {[%emt
00:00:01]} 27. Qb6 {[%clk 00:16:00]} {[%emt 00:00:12]} Nd7 {[%clk 00:09:26]}
{[%emt 00:00:28]} 28. Qc7 {[%clk 00:15:59]} {[%emt 00:00:11]} Nf6 {[%clk
00:09:19]} {[%emt 00:00:17]} 29. Re5 {[%clk 00:15:15]} {[%emt 00:00:54]} Qd7
{[%clk 00:09:17]} {[%emt 00:00:11]} 30. Qb6 {[%clk 00:14:49]} {[%emt 00:00:36]}
Nd5 {[%clk 00:09:06]} {[%emt 00:00:22]} 31. Qc5 {[%clk 00:14:49]} {[%emt
00:00:10]} Ra1 {[%clk 00:08:38]} {[%emt 00:00:37]} 32. Re1 {[%clk 00:14:56]}
{[%emt 00:00:04]} Ra7 {[%clk 00:08:25]} {[%emt 00:00:22]} 33. Be4 {[%clk
00:14:35]} {[%emt 00:00:32]} Rc7 {[%clk 00:08:12]} {[%emt 00:00:24]} 34. Qa3
{[%clk 00:13:58]} {[%emt 00:00:47]} Ra7 {[%clk 00:08:20]} {[%emt 00:00:02]} 35.
Qc5 {[%clk 00:13:46]} {[%emt 00:00:22]} Rc7 {[%clk 00:08:28]} {[%emt 00:00:01]}
36. Qa3 {[%clk 00:13:27]} {[%emt 00:00:29]} Ra7 {[%clk 00:08:37]} {[%emt
00:00:01]} 37. Qc5 {[%clk 00:13:35]} {[%emt 00:00:02]} Rc7 {[%clk 00:08:46]}
1/2-1/2

[ePGN "0.1;DGT LiveChess/2.2.5"]

[Event "British Rapidplay Championship 2023"]
[Site "Mercure Bradford, Bankfield Hotel"]
[Date "2023.04.15"]
[Round "2.1"]
[White "Ghasi, Ameet K"]
[Black "Mazek, Marek"]
[Result "1-0"]
[TimeControl "15 minutes plus 10 seconds per move"]
[WhiteElo "2631"]
[BlackElo "2052"]

1. Nf3 {[%clk 00:14:38]} {[%emt 00:00:39]} Nf6 {[%clk 00:15:18]} {[%emt
00:00:03]} 2. g3 {[%clk 00:14:47]} {[%emt 00:00:01]} d5 {[%clk 00:15:24]}
{[%emt 00:00:05]} 3. Bg2 {[%clk 00:14:55]} {[%emt 00:00:01]} c6 {[%clk
00:15:24]} {[%emt 00:00:10]} 4. O-O {[%clk 00:14:55]} {[%emt 00:00:10]} e6
{[%clk 00:15:33]} {[%emt 00:00:01]} 5. d3 {[%clk 00:15:03]} {[%emt 00:00:02]}
Be7 {[%clk 00:15:42]} {[%emt 00:00:01]} 6. Nbd2 {[%clk 00:15:12]} {[%emt
00:00:02]} O-O {[%clk 00:15:49]} {[%emt 00:00:02]} 7. e4 {[%clk 00:15:20]}
{[%emt 00:00:01]} b6 {[%clk 00:15:42]} {[%emt 00:00:49]} 8. e5 {[%clk
00:15:27]} Ne8 {[%clk 00:15:50]} 9. h4 {[%clk 00:15:35]} Ba6 {[%clk 00:15:51]}
10. Re1 {[%clk 00:15:40]} Nd7 {[%clk 00:15:59]} 11. Nf1 {[%clk 00:15:28]}
{[%emt 00:00:14]} Nc7 {[%clk 00:15:54]} {[%emt 00:00:15]} 12. N1h2 {[%clk
00:15:10]} {[%emt 00:00:27]} c5 {[%clk 00:16:02]} {[%emt 00:00:03]} 13. Ng5
{[%clk 00:15:00]} {[%emt 00:00:19]} h6 {[%clk 00:16:06]} {[%emt 00:00:06]} 14.
Nh3 {[%clk 00:15:05]} {[%emt 00:00:06]} Re8 {[%clk 00:16:01]} {[%emt 00:00:16]}
15. Qg4 {[%clk 00:14:24]} {[%emt 00:00:50]} f5 {[%clk 00:15:55]} {[%emt
00:00:16]} 16. exf6 {[%clk 00:12:48]} {[%emt 00:01:47]} Nxf6 {[%clk 00:16:03]}
{[%emt 00:00:01]} 17. Qg6 {[%clk 00:12:55]} {[%emt 00:00:02]} Kh8 {[%clk
00:15:40]} {[%emt 00:00:33]} 18. g4 {[%clk 00:12:09]} {[%emt 00:00:57]} Nh7
{[%clk 00:11:01]} {[%emt 00:04:48]} 19. g5 {[%clk 00:11:35]} {[%emt 00:00:44]}
Rg8 {[%clk 00:10:24]} {[%emt 00:00:47]} 20. Bf4 {[%clk 00:08:46]} {[%emt
00:02:59]} Bd6 {[%clk 00:09:41]} {[%emt 00:00:54]} 21. Rxe6 {[%clk 00:06:31]}
{[%emt 00:02:26]} Nxe6 {[%clk 00:09:42]} {[%emt 00:00:08]} 22. Qxe6 {[%clk
00:06:38]} {[%emt 00:00:03]} Be7 {[%clk 00:07:30]} {[%emt 00:02:22]} 23. Qxd5
{[%clk 00:04:23]} {[%emt 00:02:26]} hxg5 {[%clk 00:06:18]} {[%emt 00:01:21]} 24.
hxg5 {[%clk 00:04:19]} {[%emt 00:00:14]} Qc8 {[%clk 00:04:34]} {[%emt
00:01:50]} 25. Re1 {[%clk 00:03:34]} {[%emt 00:00:59]} Rd8 {[%clk 00:01:30]}
{[%emt 00:03:14]} 26. Qxa8 {[%clk 00:03:25]} {[%emt 00:00:19]} Qd7 {[%clk
00:01:14]} {[%emt 00:00:26]} 27. Qe4 {[%clk 00:03:26]} {[%emt 00:00:08]} Bf8
{[%clk 00:01:17]} {[%emt 00:00:07]} 28. Be5 {[%clk 00:03:21]} {[%emt 00:00:16]}
Bc8 {[%clk 00:01:14]} {[%emt 00:00:14]} 29. Qh4 {[%clk 00:03:23]} {[%emt
00:00:07]} Kg8 {[%clk 00:01:18]} {[%emt 00:00:06]} 30. g6 {[%clk 00:03:25]}
{[%emt 00:00:07]} Nf6 {[%clk 00:01:24]} {[%emt 00:00:04]} 31. Bxf6 {[%clk
00:03:33]} {[%emt 00:00:02]} gxf6 {[%clk 00:01:33]} {[%emt 00:00:01]} 32. Bd5+
{[%clk 00:03:38]} {[%emt 00:00:06]} 1-0

[Event "British Rapidplay Championship 2023"]
[Site "Mercure Bradford, Bankfield Hotel"]
[Date "2023.04.15"]
[Round "2.3"]
[White "Wells, Peter K"]
[Black "Kisteneva, Liza"]
[Result "1-0"]
[TimeControl "15 minutes plus 10 seconds per move"]
[WhiteElo "2466"]
[BlackElo "2040"]

1. d4 {[%clk 00:15:17]} d5 {[%clk 00:15:19]} {[%emt 00:00:02]} 2. c4 {[%clk
00:15:23]} {[%emt 00:00:04]} c6 {[%clk 00:15:28]} {[%emt 00:00:01]} 3. Nf3
{[%clk 00:15:16]} {[%emt 00:00:17]} Nf6 {[%clk 00:15:35]} {[%emt 00:00:03]} 4.
Nc3 {[%clk 00:15:17]} {[%emt 00:00:08]} e6 {[%clk 00:15:42]} {[%emt 00:00:03]}
5. e3 {[%clk 00:15:04]} {[%emt 00:00:24]} Nbd7 {[%clk 00:15:38]} {[%emt
00:00:15]} 6. Qc2 {[%clk 00:14:59]} {[%emt 00:00:49]} Bd6 {[%clk 00:15:28]} 7.
Bd3 {[%clk 00:13:53]} {[%emt 00:01:01]} dxc4 {[%clk 00:14:20]} {[%emt
00:01:18]} 8. Bxc4 {[%clk 00:14:00]} {[%emt 00:00:03]} e5 {[%clk 00:14:16]}
{[%emt 00:00:13]} 9. O-O {[%clk 00:11:04]} {[%emt 00:03:06]} O-O {[%clk
00:14:09]} {[%emt 00:00:18]} 10. Bb3 {[%clk 00:09:05]} {[%emt 00:02:09]} Qc7
{[%clk 00:10:47]} {[%emt 00:03:32]} 11. Bd2 {[%clk 00:08:04]} {[%emt 00:01:10]}
exd4 {[%clk 00:09:05]} {[%emt 00:01:53]} 12. exd4 {[%clk 00:08:12]} {[%emt
00:00:02]} h6 {[%clk 00:09:12]} {[%emt 00:00:02]} 13. Bxh6 {[%clk 00:05:51]}
{[%emt 00:02:32]} Bf4 {[%clk 00:05:25]} {[%emt 00:03:56]} 14. Bxf4 {[%clk
00:05:24]} {[%emt 00:00:37]} Qxf4 {[%clk 00:05:34]} {[%emt 00:00:02]} 15. Rfe1
{[%clk 00:05:02]} {[%emt 00:00:33]} Nb6 {[%clk 00:05:25]} {[%emt 00:00:19]} 16.
Qc1 {[%clk 00:04:23]} {[%emt 00:00:48]} Qg4 {[%clk 00:04:22]} {[%emt 00:01:13]}
17. Re5 {[%clk 00:03:57]} {[%emt 00:00:36]} Nbd5 {[%clk 00:02:14]} {[%emt
00:02:18]} 18. Nxd5 {[%clk 00:02:57]} {[%emt 00:01:10]} Nxd5 {[%clk 00:02:22]}
{[%emt 00:00:02]} 19. Bxd5 {[%clk 00:02:00]} {[%emt 00:01:07]} cxd5 {[%clk
00:02:30]} {[%emt 00:00:02]} 20. Qd2 {[%clk 00:01:20]} {[%emt 00:00:51]} Bd7
{[%clk 00:01:24]} {[%emt 00:01:16]} 21. Rxd5 {[%clk 00:01:05]} {[%emt
00:00:25]} Bc6 {[%clk 00:01:33]} {[%emt 00:00:01]} 22. Rg5 {[%clk 00:01:14]}
Qc8 {[%clk 00:00:59]} {[%emt 00:00:43]} 23. d5 {[%clk 00:00:48]} {[%emt
00:00:35]} Rd8 {[%clk 00:01:07]} {[%emt 00:00:03]} 24. Qc3 {[%clk 00:00:48]}
{[%emt 00:00:10]} 1-0

[Event "British Rapidplay Championship 2023"]
[Site "Mercure Bradford, Bankfield Hotel"]
[Date "2023.04.15"]
[Round "2.4"]
[White "Ashton, Adam G"]
[Black "Brencher, Paul"]
[Result "1-0"]
[TimeControl "15 minutes plus 10 seconds per move"]
[WhiteElo "2390"]
[BlackElo "1929"]

1. e4 {[%clk 00:15:17]} {[%emt 00:00:04]} e6 {[%clk 00:15:17]} {[%emt
00:00:03]} 2. d3 {[%clk 00:15:05]} {[%emt 00:00:21]} d5 {[%clk 00:15:24]}
{[%emt 00:00:03]} 3. Nd2 {[%clk 00:15:14]} {[%emt 00:00:02]} Nf6 {[%clk
00:15:26]} {[%emt 00:00:08]} 4. g3 {[%clk 00:15:22]} {[%emt 00:01:31]} c5
{[%clk 00:13:51]} {[%emt 00:00:16]} 5. Bg2 {[%clk 00:15:30]} {[%emt 00:00:02]}
Nc6 {[%clk 00:13:53]} {[%emt 00:00:09]} 6. Ngf3 {[%clk 00:15:37]} {[%emt
00:00:03]} Be7 {[%clk 00:13:46]} {[%emt 00:00:17]} 7. O-O {[%clk 00:15:44]}
{[%emt 00:00:03]} b5 {[%clk 00:13:26]} {[%emt 00:00:30]} 8. exd5 {[%clk
00:13:34]} {[%emt 00:02:19]} Nxd5 {[%clk 00:12:46]} {[%emt 00:00:51]} 9. a4
{[%clk 00:13:31]} {[%emt 00:00:13]} b4 {[%clk 00:12:27]} {[%emt 00:00:29]} 10.
Nc4 {[%clk 00:12:44]} {[%emt 00:00:57]} Bb7 {[%clk 00:12:31]} {[%emt 00:00:06]}
11. Re1 {[%clk 00:11:59]} {[%emt 00:00:55]} O-O {[%clk 00:12:23]} {[%emt
00:00:18]} 12. a5 {[%clk 00:11:39]} {[%emt 00:00:30]} a6 {[%clk 00:11:50]}
{[%emt 00:00:43]} 13. h4 {[%clk 00:11:15]} {[%emt 00:00:34]} Bf6 {[%clk
00:10:49]} {[%emt 00:01:11]} 14. Bg5 {[%clk 00:11:08]} {[%emt 00:00:18]} Qc7
{[%clk 00:08:58]} {[%emt 00:02:00]} 15. Qd2 {[%clk 00:07:26]} {[%emt 00:03:52]}
Rad8 {[%clk 00:08:08]} {[%emt 00:01:00]} 16. Bxf6 {[%clk 00:06:21]} {[%emt
00:01:15]} Nxf6 {[%clk 00:08:13]} {[%emt 00:00:05]} 17. Qe3 {[%clk 00:04:35]}
{[%emt 00:01:56]} Nd4 {[%clk 00:05:17]} {[%emt 00:03:06]} 18. Nxd4 {[%clk
00:04:38]} {[%emt 00:00:07]} Rxd4 {[%clk 00:05:16]} {[%emt 00:00:10]} 19. Qe5
{[%clk 00:04:38]} {[%emt 00:00:11]} Qxe5 {[%clk 00:04:51]} {[%emt 00:00:35]} 20.
Rxe5 {[%clk 00:04:35]} {[%emt 00:00:13]} Bxg2 {[%clk 00:03:55]} {[%emt
00:01:06]} 21. Kxg2 {[%clk 00:04:43]} {[%emt 00:00:02]} Rd5 {[%clk 00:02:19]}
{[%emt 00:01:47]} 22. Rae1 {[%clk 00:04:36]} {[%emt 00:00:16]} Rfd8 {[%clk
00:02:09]} {[%emt 00:00:21]} 23. Nb6 {[%clk 00:02:58]} {[%emt 00:01:47]} Rxe5
{[%clk 00:01:53]} {[%emt 00:00:26]} 24. Rxe5 {[%clk 00:03:06]} {[%emt
00:00:02]} Nd5 {[%clk 00:01:30]} {[%emt 00:00:33]} 25. Na4 {[%clk 00:03:10]}
{[%emt 00:00:06]} Rc8 {[%clk 00:01:14]} {[%emt 00:00:26]} 26. Re4 {[%clk
00:03:16]} {[%emt 00:00:03]} Kf8 {[%clk 00:00:27]} {[%emt 00:00:57]} 27. Rc4
{[%clk 00:03:24]} {[%emt 00:00:02]} Ke7 {[%clk 00:00:15]} {[%emt 00:00:23]} 28.
Rxc5 {[%clk 00:03:27]} {[%emt 00:00:06]} Rb8 {[%clk 00:00:14]} {[%emt
00:00:11]} 29. c4 {[%clk 00:02:51]} {[%emt 00:00:47]} bxc3 {[%clk 00:00:21]}
{[%emt 00:00:03]} 30. bxc3 {[%clk 00:02:56]} {[%emt 00:00:04]} Kd7 {[%clk
00:00:12]} {[%emt 00:00:19]} 31. c4 {[%clk 00:02:52]} {[%emt 00:00:14]} Rb4
{[%clk 00:00:13]} {[%emt 00:00:09]} 32. cxd5 {[%clk 00:02:34]} {[%emt
00:00:28]} Rxa4 {[%clk 00:00:22]} {[%emt 00:00:01]} 33. dxe6+ {[%clk 00:02:41]}
{[%emt 00:00:03]} fxe6 {[%clk 00:00:25]} {[%emt 00:00:08]} 34. Kf3 {[%clk
00:02:45]} {[%emt 00:00:06]} Kd6 {[%clk 00:00:25]} {[%emt 00:00:09]} 35. Rg5
{[%clk 00:02:50]} {[%emt 00:00:05]} g6 {[%clk 00:00:28]} {[%emt 00:00:08]} 36.
h5 {[%clk 00:02:56]} {[%emt 00:00:03]} gxh5 {[%clk 00:00:18]} {[%emt 00:00:20]}
37. Rxh5 {[%clk 00:03:05]} {[%emt 00:00:02]} e5 {[%clk 00:00:13]} {[%emt
00:00:15]} 38. Rh6+ {[%clk 00:03:11]} {[%emt 00:00:03]} Kd5 {[%clk 00:00:18]}
{[%emt 00:00:05]} 39. Rxa6 {[%clk 00:03:19]} {[%emt 00:00:02]} Ra3 {[%clk
00:00:25]} {[%emt 00:00:04]} 40. Ke2 {[%clk 00:03:20]} {[%emt 00:00:09]} Ra2+
{[%clk 00:00:29]} {[%emt 00:00:06]} 41. Ke3 {[%clk 00:03:28]} {[%emt 00:00:02]}
Ra4 {[%clk 00:00:29]} {[%emt 00:00:10]} 42. Ra8 {[%clk 00:03:25]} {[%emt
00:00:12]} h6 {[%clk 00:00:35]} {[%emt 00:00:04]} 43. a6 {[%clk 00:03:24]}
{[%emt 00:00:11]} Kc6 {[%clk 00:00:37]} {[%emt 00:00:08]} 44. Rh8 {[%clk
00:03:31]} {[%emt 00:00:03]} h5 {[%clk 00:00:14]} {[%emt 00:00:33]} 45. Rxh5
{[%clk 00:03:38]} {[%emt 00:00:03]} Kd5 {[%clk 00:00:22]} {[%emt 00:00:03]} 46.
f4 {[%clk 00:03:33]} {[%emt 00:00:14]} Kd6 {[%clk 00:00:23]} {[%emt 00:00:10]}
47. Rxe5 {[%clk 00:03:33]} {[%emt 00:00:10]} Rxa6 {[%clk 00:00:31]} {[%emt
00:00:02]} 48. g4 {[%clk 00:03:39]} {[%emt 00:00:04]} Ra1 {[%clk 00:00:39]}
{[%emt 00:00:01]} 49. Ke4 {[%clk 00:03:38]} {[%emt 00:00:11]} Rd1 {[%clk
00:00:42]} {[%emt 00:00:08]} 50. g5 {[%clk 00:03:39]} {[%emt 00:00:09]} Rg1
{[%clk 00:00:49]} {[%emt 00:00:03]} 51. Kf5 {[%clk 00:03:46]} {[%emt 00:00:02]}
Rg2 {[%clk 00:00:56]} {[%emt 00:00:03]} 52. Re1 {[%clk 00:03:48]} {[%emt
00:00:08]} Rg3 {[%clk 00:01:01]} {[%emt 00:00:04]} 53. g6 {[%clk 00:03:56]}
{[%emt 00:00:02]} Kd5 {[%clk 00:00:23]} {[%emt 00:00:49]} 54. Kf6 {[%clk
00:03:59]} {[%emt 00:00:07]} Rxd3 {[%clk 00:00:13]} {[%emt 00:00:20]} 55. g7
{[%clk 00:03:58]} {[%emt 00:00:11]} Rf3 {[%clk 00:00:20]} {[%emt 00:00:03]} 56.
g8=Q+ {[%clk 00:03:59]} {[%emt 00:00:09]} 1-0

[Event "British Rapidplay Championship 2023"]
[Site "Mercure Bradford, Bankfield Hotel"]
[Date "2023.04.15"]
[Round "2.5"]
[White "Larchikov, Maksym"]
[Black "Pitcher, John"]
[Result "0-1"]
[TimeControl "15 minutes plus 10 seconds per move"]
[WhiteElo "1871"]
[BlackElo "2358"]

1. d4 {[%clk 00:15:18]} {[%emt 00:34:46]} d5 {[%clk 00:15:13]} {[%emt
00:00:06]} 2. Nf3 {[%clk 00:15:25]} {[%emt 00:00:04]} Nf6 {[%clk 00:15:22]}
{[%emt 00:00:02]} 3. c4 {[%clk 00:15:32]} {[%emt 00:00:02]} c6 {[%clk
00:15:29]} {[%emt 00:00:03]} 4. e3 {[%clk 00:15:38]} {[%emt 00:00:05]} a6
{[%clk 00:15:36]} {[%emt 00:00:02]} 5. cxd5 {[%clk 00:15:31]} {[%emt 00:00:18]}
cxd5 {[%clk 00:15:43]} {[%emt 00:00:02]} 6. Nc3 {[%clk 00:15:31]} {[%emt
00:00:10]} Nc6 {[%clk 00:15:49]} {[%emt 00:00:03]} 7. Bd3 {[%emt 00:01:08]} Bg4
{[%clk 00:15:05]} {[%emt 00:00:05]} 8. O-O {[%clk 00:15:01]} {[%emt 00:00:31]}
e6 {[%clk 00:15:12]} {[%emt 00:00:03]} 9. b3 {[%clk 00:14:28]} {[%emt
00:00:44]} Rc8 {[%clk 00:14:25]} {[%emt 00:00:56]} 10. Bb2 {[%clk 00:14:22]}
{[%emt 00:00:17]} Bd6 {[%clk 00:14:30]} {[%emt 00:00:04]} 11. Rc1 {[%clk
00:14:21]} {[%emt 00:00:12]} O-O {[%clk 00:14:36]} {[%emt 00:00:04]} 12. h3
{[%clk 00:14:19]} {[%emt 00:00:13]} Bh5 {[%clk 00:14:06]} {[%emt 00:00:39]} 13.
Bb1 {[%clk 00:12:17]} {[%emt 00:02:12]} Re8 {[%clk 00:10:03]} {[%emt 00:04:12]}
14. Re1 {[%clk 00:09:47]} {[%emt 00:02:41]} Bb8 {[%clk 00:09:32]} {[%emt
00:00:40]} 15. Bd3 {[%clk 00:08:58]} {[%emt 00:00:59]} Qd6 {[%clk 00:07:56]}
{[%emt 00:01:47]} 16. g4 {[%clk 00:06:25]} {[%emt 00:02:43]} Bg6 {[%clk
00:07:54]} {[%emt 00:00:11]} 17. Bxg6 {[%clk 00:06:13]} {[%emt 00:00:23]} hxg6
{[%clk 00:08:02]} {[%emt 00:00:02]} 18. Nb1 {[%clk 00:05:44]} {[%emt 00:00:39]}
Qd8 {[%clk 00:07:03]} {[%emt 00:01:08]} 19. Ne5 {[%clk 00:05:11]} {[%emt
00:00:43]} Nxe5 {[%clk 00:06:54]} {[%emt 00:00:20]} 20. Rxc8 {[%clk 00:05:05]}
{[%emt 00:00:16]} Qxc8 {[%clk 00:06:59]} {[%emt 00:00:05]} 21. dxe5 {[%clk
00:05:09]} {[%emt 00:00:07]} Nd7 {[%clk 00:07:06]} {[%emt 00:00:02]} 22. f4
{[%clk 00:05:03]} {[%emt 00:00:16]} Qd8 {[%clk 00:06:22]} {[%emt 00:00:53]} 23.
Nd2 {[%clk 00:04:54]} {[%emt 00:00:19]} Qh4 {[%clk 00:06:16]} {[%emt 00:00:16]}
24. Kg2 {[%clk 00:04:49]} {[%emt 00:00:15]} Rc8 {[%clk 00:06:10]} {[%emt
00:00:15]} 25. Nf3 {[%clk 00:04:51]} {[%emt 00:00:08]} Qd8 {[%clk 00:06:15]}
{[%emt 00:00:06]} 26. Qd2 {[%clk 00:04:55]} {[%emt 00:00:06]} Nc5 {[%clk
00:06:10]} {[%emt 00:00:15]} 27. Rc1 {[%clk 00:04:38]} {[%emt 00:00:26]} Ne4
{[%clk 00:06:11]} {[%emt 00:00:10]} 28. Qe1 {[%clk 00:04:31]} {[%emt 00:00:17]}
Ba7 {[%clk 00:04:06]} {[%emt 00:02:16]} 29. g5 {[%clk 00:03:24]} {[%emt
00:01:17]} Rc6 {[%clk 00:03:42]} {[%emt 00:00:34]} 30. Bd4 {[%clk 00:03:19]}
{[%emt 00:00:15]} Qc7 {[%clk 00:02:50]} {[%emt 00:01:02]} 31. Rxc6 {[%clk
00:02:57]} {[%emt 00:00:33]} bxc6 {[%clk 00:02:58]} {[%emt 00:00:01]} 32. b4
{[%clk 00:02:50]} {[%emt 00:00:17]} c5 {[%clk 00:02:44]} {[%emt 00:00:23]} 33.
bxc5 {[%clk 00:02:53]} {[%emt 00:00:08]} Bxc5 {[%clk 00:02:51]} {[%emt
00:00:03]} 34. Qc1 {[%clk 00:02:51]} {[%emt 00:00:12]} Qb6 {[%clk 00:02:53]}
{[%emt 00:00:07]} 35. Bxc5 {[%clk 00:02:49]} {[%emt 00:00:13]} Nxc5 {[%clk
00:03:00]} {[%emt 00:00:03]} 36. Nd4 {[%clk 00:02:38]} {[%emt 00:00:21]} Qa5
{[%clk 00:02:56]} {[%emt 00:00:14]} 37. Qc2 {[%clk 00:02:26]} {[%emt 00:00:21]}
Ne4 {[%clk 00:02:45]} {[%emt 00:00:23]} 38. Kf1 {[%clk 00:01:52]} {[%emt
00:00:40]} Kh7 {[%clk 00:02:27]} {[%emt 00:00:31]} 39. h4 {[%clk 00:01:45]}
{[%emt 00:00:17]} Qa3 {[%clk 00:02:17]} {[%emt 00:00:19]} 40. Qg2 {[%clk
00:00:00]} {[%emt 00:01:46]} 0-1